bitfinex/quotes_ETHUSD_20250814
["timestamp","ask_amount","ask_price","bid_price","bid_amount"]
[1755195439364,0.456,4507.9,4507.6,2.21847229]
[1755195439512,0.456,4507.9,4507.6,2.21843693]
[1755195439717,4.448,4507.9,4507.2,2.21867234]
[1755195439914,4.448,4507.9,4507.1,0.001]
[1755195440116,0.02772971,4507.8,4507.1,0.001]
[1755195440316,0.9555,4507.7,4507.1,0.001]
[1755195440515,0.98323094,4507.6,4507.1,0.001]
[1755195440721,4.9455,4507.5,4507.1,0.001]
[1755195440960,0.9555,4507.4,4507.1,0.001]
[1755195441169,4.9425,4507.3,4507.1,0.001]
[1755195441316,4.9425,4507.2,4507.1,0.001]
[1755195442382,0.9555,4507.2,4507.1,0.001]
[1755195442554,4.9365,4507.2,4507.1,0.001]
[1755195444967,0.9555,4507.2,4507.1,0.1122]
[1755195445171,4.9275,4507.2,4507.1,0.1122]
[1755195445379,7.14617234,4507.2,4507.1,0.1122]
[1755195445591,7.14617234,4507.2,4507.1,0.001]
[1755195445941,4.9275,4507.2,4507.1,0.001]
[1755195447056,7.14617234,4507.2,4507.1,0.001]
[1755195447378,4.9275,4507.2,4507.1,0.001]
[1755195447680,4.9125,4507.2,4507.1,0.001]
[1755195447847,0.9555,4507.2,4507.1,0.001]
[1755195448178,4.9125,4507.2,4507.1,0.001]
[1755195448742,3.952,4507.2,4507.1,0.001]
[1755195449160,3.95,4507.2,4507.1,2.21972157]
[1755195449353,0.9555,4507.8,4507.3,2.21861406]
[1755195449599,1e-08,4508.2,4507.1,0.001]
[1755195449898,1e-08,4508.2,4508.1,2.2182294]
[1755195450480,1e-08,4508.2,4508.1,2.66188403]
[1755195451503,1e-08,4508.2,4508.1,5.78488403]
[1755195451813,0.002,4508.6,4508.3,2.218131]
[1755195451814,1e-08,4508.4,4508.3,2.218131]
[1755195452995,1e-08,4508.4,4508.3,2.341131]
[1755195453574,0.002,4508.6,4508.5,2.2180326]
[1755195453575,1e-08,4508.6,4508.5,2.2180326]
[1755195453897,1e-08,4508.6,4508.5,6.09694896]
[1755195454099,0.002,4508.7,4508.6,5.2179834]
[1755195454100,1e-08,4508.7,4508.6,5.2179834]
[1755195454291,1e-08,4508.7,4508.6,2.2179834]
[1755195454998,0.95550001,4508.7,4508.1,0.44365463]
[1755195455176,0.02772479,4508.6,4507.9,2.2183076]
[1755195455371,0.4723,4508.6,4508.0,2.21823853]
[1755195455673,0.4723,4508.6,4508.5,0.1112]
[1755195455874,1e-08,4508.7,4508.6,2.2179834]
[1755195456091,0.47230001,4508.7,4508.5,0.1112]
[1755195456471,3.20120819,4508.6,4508.5,0.1112]
[1755195456677,0.9555,4508.6,4507.8,2.21835789]
[1755195456875,0.9555,4508.6,4508.1,0.1112]
[1755195457073,0.4723,4508.6,4508.5,0.1112]
[1755195457278,1e-08,4508.7,4508.5,0.1112]
[1755195457507,1e-08,4508.7,4508.6,2.2179834]
[1755195457676,1e-08,4508.7,4508.6,2.3291834]
[1755195458005,1e-08,4508.7,4508.6,2.78390727]
[1755195458405,1e-08,4508.7,4508.6,5.90690727]
[1755195459719,1e-08,4508.7,4508.6,5.78390727]
[1755195460576,1e-08,4508.7,4508.6,2.3291834]
[1755195462805,0.47230001,4508.7,4508.6,2.3291834]
[1755195463112,0.95550001,4508.7,4508.6,0.1112]
[1755195465016,0.95550001,4508.7,4508.6,2.3291834]
[1755195465345,1e-08,4508.7,4508.6,2.3291834]
[1755195466409,1e-08,4508.7,4508.6,2.78390944]
[1755195467645,1e-08,4509.1,4509.0,2.21778664]
[1755195467847,1e-08,4509.1,4509.0,9.10978664]
[1755195468051,1e-08,4509.1,4509.0,5.32898664]
[1755195468460,0.47230001,4509.1,4509.0,2.32898664]
[1755195468617,0.95550001,4509.1,4509.0,2.32898664]
[1755195468949,1e-08,4509.1,4509.0,2.32898664]
[1755195469258,1e-08,4509.1,4509.0,2.78367263]
[1755195469777,0.95550001,4509.1,4507.1,0.001]
[1755195469980,0.9555,4509.0,4507.5,3.886]
[1755195470112,0.9555,4508.9,4507.6,3.0]
[1755195471162,0.4723,4508.8,4507.5,3.886]
[1755195471367,2.2180818,4508.4,4507.1,3.887]
[1755195471666,2.218131,4508.3,4507.1,0.001]
[1755195471955,2.2182294,4508.1,4507.6,0.001]
[1755195472121,2.21842624,4507.7,4507.6,0.001]
[1755195472316,2.21842624,4507.7,4507.1,0.001]
[1755195472317,2.2185739,4507.4,4507.1,0.001]
[1755195472546,3.15960607,4507.4,4507.1,0.001]
[1755195472848,3.1318739,4507.4,4507.1,0.001]
[1755195474555,7.0068739,4507.4,4507.1,0.001]
[1755195474760,7.0068739,4507.4,4505.7,3.0]
[1755195474761,2.21867234,4507.2,4501.6,2.2213966]
[1755195475064,0.23426885,4507.3,4504.3,2.22008255]
[1755195475065,0.55,4507.0,4504.3,2.22008255]
[1755195475222,0.94103525,4506.9,4505.3,2.21957837]
[1755195475439,0.9133,4506.8,4504.4,0.93419978]
[1755195475639,0.9133,4507.4,4505.3,21.21028753]
[1755195475875,0.9133,4507.4,4505.4,3.93]
[1755195476084,2.21824583,4508.1,4505.5,0.01110968]
[1755195476085,0.4557,4508.0,4505.5,0.01110968]
[1755195476241,0.544484,4508.5,4506.0,2.2192632]
[1755195476552,0.45570001,4509.1,4508.1,2.2182102]
[1755195476874,0.11553185,4509.0,4507.4,3.0]
[1755195477075,0.11553185,4509.0,4507.1,0.0871]
[1755195477076,0.60085418,4509.0,4507.2,3.0]
[1755195477245,0.4557,4508.9,4506.9,3.0]
[1755195477439,2.21793664,4508.7,4506.9,3.3930375]
[1755195477663,0.4576,4508.8,4507.0,2.2187708]
[1755195477847,2.21794295,4508.7,4507.7,2.21839435]
[1755195478052,0.4576,4508.8,4506.9,3.3930375]
[1755195478573,2.67549232,4508.8,4506.9,3.3930375]
[1755195478774,2.67365843,4508.7,4507.7,2.21837791]
[1755195478974,2.21795843,4508.7,4507.7,2.21837791]
[1755195479166,0.9133,4508.6,4507.0,0.97529604]
[1755195479372,0.9133,4508.6,4507.8,2.21836471]
[1755195479581,0.9133,4508.6,4507.5,3.0]
[1755195479739,0.9133,4508.6,4508.4,0.1112]
[1755195479945,1e-08,4509.1,4508.4,0.1112]
[1755195480279,1e-08,4509.1,4508.9,0.1112]
[1755195480478,1e-08,4509.1,4509.0,0.1112]
[1755195480678,0.91330001,4509.1,4509.0,0.1112]
[1755195481357,1e-08,4509.1,4509.0,0.1112]
[1755195482748,0.91330001,4509.1,4509.0,0.1112]
[1755195482947,3.13103747,4509.1,4509.0,0.1112]
[1755195483371,0.91330001,4509.1,4509.0,0.1112]
[1755195483962,3.13103747,4509.1,4509.0,0.1112]
[1755195484169,7.03903747,4509.1,4509.0,0.1112]
[1755195484372,1e-08,4509.1,4509.0,0.1112]
[1755195484774,1e-08,4509.1,4509.0,2.32898664]
[1755195484999,1e-08,4509.1,4509.0,2.6858853]
[1755195485287,1e-08,4509.1,4509.0,0.1112]
[1755195485445,1e-08,4509.1,4509.0,0.1122]
[1755195485846,0.91330001,4509.1,4509.0,0.1122]
[1755195486161,3.13103747,4509.1,4509.0,0.1122]
[1755195486360,3.13103747,4509.1,4509.0,0.001]
[1755195486873,3.68103747,4509.1,4509.0,0.001]
[1755195487047,3.79223747,4509.1,4509.0,0.001]
[1755195487250,2.21788502,4508.8,4505.7,3.901]
[1755195487491,2.21847546,4507.6,4507.5,0.1112]
[1755195487650,7.03177546,4507.6,4507.5,0.1112]
[1755195487851,4.8133,4507.6,4507.1,0.1112]
[1755195488051,2.21867234,4507.2,4507.1,0.1112]
[1755195488487,3.13197234,4507.2,4507.1,0.1112]
[1755195489960,0.9133,4507.2,4507.1,0.1112]
[1755195490160,7.02297234,4507.2,4507.1,0.1112]
[1755195490854,3.887,4507.2,4507.1,0.1112]
[1755195491184,6.10567234,4507.2,4507.1,0.1112]
[1755195491554,7.01897234,4507.2,4507.1,0.1112]
[1755195492407,2.2187528,4507.1,4505.1,0.124]
[1755195492568,2.2187708,4507.0,4506.9,0.1112]
[1755195492766,3.1320708,4507.0,4506.9,0.1112]
[1755195493200,0.9133,4507.0,4506.9,0.1112]
[1755195493398,7.0110708,4507.0,4506.9,0.1112]
[1755195493694,4.7923,4507.0,4506.9,0.1112]
[1755195494083,3.877,4507.0,4506.9,0.1112]
[1755195496374,6.5514708,4507.0,4506.9,0.1112]
[1755195496590,7.0090708,4507.0,4506.9,0.1112]
[1755195498059,4.7903,4507.0,4506.9,0.1112]
[1755195498266,3.857,4507.0,4506.9,0.1112]
[1755195499293,4.7703,4507.0,4504.5,2.30710222]
[1755195499593,3.853,4506.9,4504.9,3.0]
[1755195499796,2.6742276,4507.5,4506.5,2.21899946]
[1755195499996,3.852,4507.4,4506.8,0.1112]
[1755195500195,2.21862312,4507.3,4507.2,0.1112]
[1755195500497,3.1596559,4507.3,4507.2,0.1112]
[1755195500808,2.2188103,4507.0,4506.8,0.1112]
[1755195501009,3.851,4506.9,4506.8,0.1112]
[1755195501160,4.3067,4506.9,4506.8,0.1112]
[1755195501356,6.52552003,4506.9,4506.8,0.1112]
[1755195501656,0.1112,4507.4,4506.8,0.1112]
[1755195501861,0.1112,4507.4,4506.9,2.21877494]
[1755195501862,3.854,4507.3,4506.9,2.21877494]
[1755195502162,3.854,4507.3,4506.8,2.21886128]
[1755195502365,0.4495,4507.7,4507.0,2.21876757]
[1755195502566,3.854,4507.6,4507.1,2.21872157]
[1755195502790,3.854,4507.6,4506.8,2.2188343]
[1755195502791,0.9492,4507.5,4506.8,2.21885954]
[1755195503010,0.9492,4507.5,4505.7,0.0871]
[1755195503196,0.9492,4507.5,4505.7,0.31786575]
[1755195503382,0.9492,4507.5,4506.9,2.21881741]
[1755195503806,0.9492,4507.5,4506.2,3.0]
[1755195503807,2.2185739,4507.4,4505.7,0.23076575]
[1755195504009,3.87473278,4507.3,4505.7,0.23076575]
[1755195504209,0.9769334,4507.2,4505.4,0.001]
[1755195504417,0.9492,4507.2,4506.4,2.21904087]
[1755195504587,3.16788445,4507.2,4506.4,2.21904087]
[1755195504784,3.16788445,4507.2,4505.7,2.21941096]
[1755195505120,3.847,4507.3,4505.8,3.0]
[1755195505325,3.847,4507.3,4505.9,2.51931245]
[1755195505513,3.847,4507.3,4506.0,2.2192632]
[1755195505719,3.847,4507.3,4506.6,2.21893854]
[1755195506389,3.847,4507.3,4506.0,3.0]
[1755195506589,3.847,4507.3,4506.8,2.21886577]
[1755195506791,0.4495,4507.2,4506.3,2.21911274]
[1755195506989,0.4495,4507.2,4506.6,2.21892506]
[1755195507543,0.4495,4507.2,4506.8,2.2188663]
[1755195507759,4.3467,4507.3,4506.9,2.21881833]
[1755195507915,3.847,4507.3,4506.9,2.21881833]
[1755195508090,4.2965,4507.3,4506.8,2.21883265]
[1755195508295,4.2965,4507.3,4506.9,2.21881902]
[1755195508525,0.4997,4507.8,4507.2,2.21867234]
[1755195508832,0.4997,4507.8,4506.0,3.0]
[1755195508833,0.4495,4507.9,4507.0,2.21876925]
[1755195508997,3.828,4507.8,4507.7,2.21840952]
[1755195509430,3.826,4507.8,4506.9,2.21882003]
[1755195509603,0.4495,4508.5,4506.9,2.22991691]
[1755195509795,0.4495,4508.5,4504.9,0.08464417]
[1755195509796,5.8217,4508.9,4507.2,3.0]
[1755195509993,3.825,4508.8,4508.4,2.21803548]
[1755195510200,4.7742,4508.8,4508.2,2.21815452]
[1755195510606,4.7742,4508.8,4508.3,2.21812691]
[1755195510834,4.7742,4508.8,4507.5,2.21852468]
[1755195510835,0.9492,4508.7,4507.5,2.21852468]
[1755195511006,0.9492,4508.7,4507.4,2.2185739]
[1755195511206,0.9492,4508.7,4508.4,2.2180424]
[1755195511408,0.9492,4508.6,4507.5,0.25272839]
[1755195511602,3.825,4508.8,4508.3,2.21811982]
[1755195511828,4.2745,4508.8,4507.7,2.21842624]
[1755195512142,4.2745,4508.8,4508.6,0.1112]
[1755195512303,0.9492,4508.7,4508.6,0.1112]
[1755195515706,3.19485838,4508.7,4508.6,0.1112]
[1755195515902,2.21807299,4508.5,4508.3,0.1112]
[1755195516107,0.1112,4508.3,4507.6,0.1112]
[1755195516338,2.21842624,4507.7,4507.6,0.1112]
[1755195516541,6.05015656,4507.7,4507.6,0.1112]
[1755195516739,4.7532,4507.7,4507.6,0.1112]
[1755195516945,6.97162624,4507.7,4507.6,0.1112]
[1755195518534,2.21851132,4507.6,4505.9,0.3]
[1755195518845,0.9492,4507.5,4507.1,0.1112]
[1755195519047,2.21867031,4507.3,4507.1,0.1112]
[1755195519258,0.9492,4507.2,4507.1,0.1112]
[1755195520844,3.793,4507.2,4507.1,0.1112]
[1755195522342,4.2425,4507.2,4507.1,0.1112]
[1755195522860,3.793,4507.2,4507.1,0.1112]
[1755195523406,0.1112,4507.9,4507.1,0.1112]
[1755195523655,3.782,4507.8,4507.1,0.1112]
[1755195523948,0.1112,4508.1,4507.5,2.32971709]
[1755195524165,3.782,4508.0,4507.5,0.1112]
[1755195524506,3.782,4508.0,4507.5,2.32972154]
[1755195524739,4.2315,4508.0,4507.5,0.1112]
[1755195525140,6.44978291,4508.0,4507.5,0.1112]
[1755195525468,3.16752942,4507.9,4507.5,0.1112]
[1755195525766,3.782,4508.0,4507.5,0.1112]
[1755195525767,0.9492,4507.8,4507.5,0.1112]
[1755195526061,3.782,4508.0,4507.5,0.1112]
[1755195526567,4.2315,4508.0,4507.5,0.1112]
[1755195526773,3.782,4508.0,4507.5,0.1112]
[1755195526974,0.9492,4507.9,4507.5,0.1112]
[1755195527130,2.21841921,4507.8,4507.5,0.1112]
[1755195527469,0.9492,4507.7,4507.5,0.1112]
[1755195527671,2.21901697,4506.5,4506.4,0.001]
[1755195527872,12.38341697,4506.5,4506.4,0.001]
[1755195528746,12.93341697,4506.5,4506.4,0.001]
[1755195531044,12.38341697,4506.5,4506.4,0.001]
[1755195534941,12.93341697,4506.5,4506.4,0.001]
[1755195535175,12.93341697,4506.5,4506.4,1e-08]
[1755195537492,9.15141697,4506.5,4506.4,1e-08]
[1755195537659,12.93441697,4506.5,4506.4,1e-08]
[1755195539760,13.01041697,4506.5,4506.4,1e-08]
[1755195544717,9.22741697,4506.5,4506.4,1e-08]
[1755195544924,13.01041697,4506.5,4506.4,1e-08]
[1755195545509,13.00941697,4506.5,4506.4,1e-08]
[1755195545878,5.5092,4506.5,4506.4,1e-08]
[1755195546077,11.39901697,4506.5,4506.4,1e-08]
[1755195546807,5.398,4506.5,4506.4,1e-08]
[1755195547125,9.18,4506.5,4506.4,0.19830001]
[1755195547429,5.398,4506.5,4506.4,0.19830001]
[1755195547591,9.18,4506.5,4506.4,2.54136622]
[1755195547785,0.076,4506.5,4506.4,3.14003867]
[1755195547982,3.858,4506.5,4506.4,3.14003867]
[1755195548813,3.858,4506.5,4506.4,0.11120001]
[1755195549329,6.07701697,4506.5,4506.4,1e-08]
[1755195549491,3.858,4506.5,4506.4,1e-08]
[1755195550142,3.857,4506.5,4506.4,1e-08]
[1755195550646,3.857,4506.5,4506.4,2.21906622]
[1755195550647,0.076,4506.5,4506.4,2.21906622]
[1755195550940,3.857,4506.5,4506.4,2.99251759]
[1755195551141,3.857,4506.5,4506.4,0.77345138]
[1755195551440,3.857,4506.5,4506.4,0.11120001]
[1755195553121,0.076,4506.5,4506.4,0.11120001]
[1755195553318,3.857,4506.5,4506.4,0.11120001]
[1755195553688,3.856,4506.5,4506.4,0.11120001]
[1755195553890,0.076,4506.5,4506.4,0.11120001]
[1755195554106,3.856,4506.5,4506.4,0.11120001]
[1755195554692,3.858,4506.5,4506.4,0.11120001]
[1755195555113,3.858,4506.5,4506.4,2.33026622]
[1755195555709,0.078,4506.5,4506.4,2.78550923]
[1755195556027,3.858,4506.5,4506.4,3.10780923]
[1755195556226,3.858,4506.5,4506.4,2.98380923]
[1755195556390,3.858,4506.5,4506.4,2.33026622]
[1755195556784,0.078,4506.5,4506.4,2.65256622]
[1755195556990,3.858,4506.5,4506.4,2.52856622]
[1755195557423,3.858,4506.5,4506.4,2.33026622]
[1755195558125,3.858,4506.5,4506.4,2.52856622]
[1755195558302,3.858,4506.5,4506.4,3.00363885]
[1755195558623,3.858,4506.5,4506.4,2.80533885]
[1755195559218,3.858,4506.5,4506.4,3.00363885]
[1755195559618,3.858,4506.5,4506.4,0.11120001]
[1755195559991,3.858,4506.5,4506.4,2.33026622]
[1755195560191,3.858,4506.5,4506.4,0.11120001]
[1755195561205,3.858,4506.5,4506.4,2.33026622]
[1755195561424,0.078,4506.5,4506.4,2.33026622]
[1755195561625,0.078,4506.5,4506.4,2.78550804]
[1755195561843,3.856,4506.5,4506.4,0.56644183]
[1755195562044,0.078,4506.5,4506.4,2.33026622]
[1755195562545,0.078,4506.5,4506.4,5.65256622]
[1755195565003,0.002,4507.5,4507.4,2.2185739]
[1755195565209,0.002,4507.5,4507.4,2.3297739]
[1755195567563,0.002,4507.5,4507.4,5.6520739]
[1755195567729,0.002,4507.5,4507.4,7.9248477]
[1755195568211,0.002,4507.5,4500.9,7.87792735]
[1755195568212,0.002,4507.5,4506.2,0.089751]
[1755195568415,0.002,4507.5,4506.2,0.001]
[1755195568416,2.21901697,4506.5,4506.2,0.001]
[1755195568611,4.7105,4506.5,4506.2,0.001]
[1755195568811,4.7105,4506.5,4506.4,0.11120001]
[1755195569007,6.92951697,4506.5,4506.4,0.11120001]
[1755195569478,6.92951697,4506.5,4506.4,1e-08]
[1755195571085,0.1112,4506.7,4506.4,1e-08]
[1755195571385,1e-08,4507.5,4507.4,2.2185739]
[1755195571535,1e-08,4507.5,4507.4,6.62139127]
[1755195571741,1e-08,4507.9,4507.8,2.21837703]
[1755195571956,0.002,4508.5,4507.9,5.21832782]
[1755195572203,0.002,4508.5,4507.9,7.03950021]
[1755195572363,0.002,4508.5,4507.9,6.16632782]
[1755195572560,0.002,4508.5,4508.4,2.2180818]
[1755195572789,1e-08,4508.5,4508.4,6.1660818]
[1755195572962,1e-08,4508.9,4508.8,2.21788502]
[1755195573163,1e-08,4508.9,4508.8,10.87436193]
[1755195573380,0.002,4510.3,4509.7,2.2174424]
[1755195573583,0.002,4510.3,4509.7,6.9404424]
[1755195573862,1e-08,4510.1,4510.0,2.2172949]
[1755195574192,0.002,4510.8,4510.1,2.21724573]
[1755195574495,0.002,4510.8,4510.3,2.21714741]
[1755195574794,0.002,4510.8,4510.3,3.16514741]
[1755195575199,0.002,4510.8,4510.3,2.66814741]
[1755195575695,0.002,4510.8,4510.4,2.21709826]
[1755195575866,0.002,4510.8,4510.4,3.16509826]
[1755195576061,0.002,4510.8,4510.4,4.87997382]
[1755195576458,0.002,4510.8,4510.4,4.42897382]
[1755195576660,0.002,4510.8,4510.4,2.21709826]
[1755195577596,1e-08,4510.5,4510.4,6.93709826]
[1755195578297,1e-08,4510.5,4510.4,5.98909826]
[1755195578594,1e-08,4510.5,4510.4,6.44009826]
[1755195578956,1e-08,4510.5,4510.4,6.93709826]
[1755195579291,1e-08,4510.5,4510.4,7.72520182]
[1755195579493,1e-08,4510.5,4510.4,7.27420182]
[1755195579885,1e-08,4510.5,4510.4,7.27320182]
[1755195580186,1e-08,4510.5,4509.4,0.088689]
[1755195580187,0.47630001,4510.5,4509.4,0.088689]
[1755195580521,1e-08,4510.5,4510.4,2.21709826]
[1755195581195,1e-08,4510.5,4510.4,2.32829826]
[1755195581400,1e-08,4510.5,4510.4,2.7828456]
[1755195582861,1e-08,4510.5,4510.4,3.2338456]
[1755195583061,1e-08,4510.5,4510.4,2.32829826]
[1755195583402,1e-08,4510.5,4510.4,0.1112]
[1755195583600,0.93550001,4510.5,4510.4,0.1112]
[1755195585309,1e-08,4510.5,4510.4,0.1112]
[1755195585482,1e-08,4510.5,4510.4,2.32829826]
[1755195585878,1e-08,4510.5,4510.4,6.09729826]
[1755195586091,1e-08,4510.5,4510.4,6.92874694]
[1755195586787,1e-08,4510.5,4510.4,3.15974694]
[1755195587186,0.45920001,4510.5,4510.4,0.1112]
[1755195587380,0.93550001,4510.5,4510.4,0.1112]
[1755195588612,1e-08,4510.5,4510.4,2.32829826]
[1755195588811,1e-08,4510.5,4510.4,0.1112]
[1755195589019,0.93550001,4510.5,4510.4,0.1112]
[1755195589878,3.15254911,4510.5,4510.4,0.1112]
[1755195590083,0.93550001,4510.5,4510.4,0.1112]
[1755195590411,0.96321312,4510.5,4510.4,0.1112]
[1755195590637,0.93550001,4510.5,4510.4,0.1112]
[1755195590813,3.15254911,4510.5,4510.4,0.1112]
[1755195590992,0.96321312,4510.5,4509.0,3.768]
[1755195591312,0.9355,4510.4,4510.0,0.1112]
[1755195591486,0.9355,4510.3,4510.2,0.1112]
[1755195592433,0.4592,4510.3,4510.2,0.1112]
[1755195592627,0.9109,4510.3,4510.2,0.1112]
[1755195593822,1e-08,4510.5,4510.2,0.1112]
[1755195594021,0.46710001,4510.5,4510.2,0.1112]
[1755195594413,0.45170001,4510.5,4510.2,0.1112]
[1755195594614,0.9188,4510.4,4510.2,0.1112]
[1755195595197,0.9188,4510.4,4510.2,2.32839602]
[1755195595607,1e-08,4510.5,4510.4,2.21709826]
[1755195596739,1e-08,4510.5,4510.4,3.17109826]
[1755195599438,1e-08,4510.5,4510.4,2.21709826]
[1755195600549,1e-08,4510.5,4510.4,6.93609826]
[1755195600846,1e-08,4511.2,4510.8,3.0]
[1755195601020,1e-08,4511.2,4511.1,2.21675422]
[1755195601334,1e-08,4511.2,4511.1,6.17075422]
[1755195601543,0.4671,4513.0,4511.4,2.21660681]
[1755195601702,4.2167,4513.3,4511.7,21.26382114]
[1755195601903,4.6838,4513.3,4511.8,5.29679241]
[1755195602121,4.6838,4513.3,4511.8,5.64711816]
[1755195602328,1e-08,4511.9,4511.8,5.64711816]
[1755195602938,1e-08,4511.9,4511.8,4.34279241]
[1755195603439,1e-08,4511.9,4511.8,5.15511816]
[1755195603740,4.2167,4513.3,4511.9,3.35032575]
[1755195603939,0.4517,4513.3,4512.0,5.97587556]
[1755195604127,0.4671,4513.9,4513.2,21.26382114]
[1755195604301,2.78830247,4514.8,4513.2,21.26382114]
[1755195604302,0.46529657,4514.7,4513.3,4.11332575]
[1755195604512,0.9188,4514.7,4514.2,2.21522755]
[1755195604732,0.9188,4514.6,4514.1,2.21525151]
[1755195604905,0.4517,4514.6,4513.7,3.763]
[1755195605262,0.4517,4514.6,4513.8,2.56575399]
[1755195605461,0.4517,4514.6,4514.2,2.21521051]
[1755195605758,0.9188,4514.6,4514.5,0.1104]
[1755195605964,0.9188,4514.6,4513.8,0.35032575]
[1755195605965,2.21537916,4513.9,4513.8,0.35032575]
[1755195606103,2.21537916,4513.9,4511.6,2.21646678]
[1755195606104,2.21542824,4513.8,4512.6,0.1112]
[1755195606305,0.47939285,4513.8,4513.2,21.26382114]
[1755195606499,0.78003767,4515.0,4513.4,0.1104]
[1755195606500,0.9188,4513.7,4513.4,0.1104]
[1755195606756,2.21557549,4513.5,4513.4,0.1104]
[1755195607176,0.94649469,4513.5,4511.3,2.21665595]
[1755195607326,0.94649469,4513.5,4511.2,3.07102853]
[1755195607327,4.6798,4513.4,4511.9,2.2163346]
[1755195607680,2.21605684,4512.6,4512.5,0.1112]
[1755195607884,2.21605684,4512.6,4512.3,0.1112]
[1755195607885,0.94650021,4512.6,4512.3,0.1112]
[1755195608024,0.9188,4512.5,4510.7,2.2169508]
[1755195608379,2.21631205,4512.0,4510.8,2.50506228]
[1755195608577,2.21651033,4511.6,4510.8,2.50506228]
[1755195608732,4.70750451,4511.9,4511.6,0.1112]
[1755195608733,4.2127,4511.9,4511.6,0.1112]
[1755195608932,0.4517,4511.8,4511.6,0.1112]
[1755195609126,2.21645942,4511.7,4511.6,0.1112]
[1755195609355,2.21662815,4511.4,4510.4,2.21709826]
[1755195609634,0.49480819,4511.3,4511.2,0.1112]
[1755195609968,3.16316414,4511.3,4511.2,0.1112]
[1755195610177,0.94650819,4511.3,4510.3,0.001]
[1755195610344,2.21706724,4510.5,4510.3,0.001]
[1755195610668,6.89689826,4510.4,4510.3,0.001]
[1755195612158,0.4671,4510.8,4510.3,0.1122]
[1755195612328,3.76,4510.7,4510.6,0.1112]
[1755195612751,0.1112,4511.1,4510.6,0.1112]
[1755195612929,0.4671,4511.0,4510.6,0.1112]
[1755195613274,3.761,4510.9,4510.6,0.1112]
[1755195613486,0.1112,4511.1,4510.6,0.1112]
[1755195613776,3.76,4511.0,4510.6,0.1112]
[1755195613975,0.4671,4511.0,4510.6,0.1112]
[1755195614130,0.4671,4510.9,4510.6,0.1112]
[1755195614330,4.6788,4510.8,4510.6,0.1112]
[1755195614550,0.9188,4510.8,4510.6,0.1112]
[1755195614743,0.4671,4510.7,4510.6,0.1112]
[1755195614940,4.2271,4510.7,4510.6,0.1112]
[1755195615262,3.1357508,4510.7,4510.3,0.001]
[1755195615478,0.94651249,4510.6,4510.3,0.001]
[1755195615679,2.21709826,4510.4,4510.3,0.001]
[1755195615901,6.92361198,4510.4,4510.3,0.001]
[1755195616111,6.89589826,4510.4,4510.3,0.001]
[1755195618093,3.13589826,4510.4,4510.3,0.001]
[1755195618403,4.2261,4510.4,4510.3,0.001]
[1755195618585,6.89489826,4510.4,4510.3,0.001]
[1755195619105,0.9188,4510.4,4510.3,0.001]
[1755195619272,6.89589826,4510.4,4510.3,0.001]
[1755195621496,7.44589826,4510.4,4510.3,1e-08]
[1755195622021,7.44489826,4510.4,4510.3,1e-08]
[1755195622161,3.68589826,4510.4,4510.3,1e-08]
[1755195622571,7.47261198,4510.4,4510.3,1e-08]
[1755195622773,7.44489826,4510.4,4510.3,1e-08]
[1755195623069,3.13589826,4510.4,4510.3,1e-08]
[1755195623290,0.4671,4510.4,4510.3,1e-08]
[1755195623482,6.44319826,4510.4,4510.3,1e-08]
[1755195623678,0.4604,4510.8,4510.3,1e-08]
[1755195624004,0.4604,4511.3,4510.3,1e-08]
[1755195624301,2.21690359,4510.8,4510.3,1e-08]
[1755195624500,0.02770881,4511.2,4510.3,1e-08]
[1755195624666,2.2168908,4510.9,4510.3,1e-08]
[1755195624877,3.758,4511.1,4510.3,1e-08]
[1755195625109,2.21700181,4510.6,4510.3,1e-08]
[1755195625403,3.758,4510.5,4510.3,1e-08]
[1755195625606,3.758,4510.4,4510.3,1e-08]
[1755195626188,2.2169508,4510.7,4510.3,1e-08]
[1755195626387,3.758,4510.6,4510.3,1e-08]
[1755195626628,3.758,4510.5,4510.3,1e-08]
[1755195627129,2.21695246,4510.7,4510.3,1e-08]
[1755195627330,0.1112,4510.8,4510.3,1e-08]
[1755195627523,3.758,4510.7,4510.3,1e-08]
[1755195627727,5.97496244,4510.7,4510.3,1e-08]
[1755195627928,0.1112,4510.8,4510.3,1e-08]
[1755195628133,3.758,4510.7,4510.3,1e-08]
[1755195628314,3.758,4510.6,4510.3,1e-08]
[1755195628818,0.1112,4511.0,4510.3,2.67170023]
[1755195629020,2.21667289,4511.3,4510.5,2.21700655]
[1755195629210,3.757,4511.2,4510.5,0.1112]
[1755195629409,2.32781748,4511.4,4510.5,0.1112]
[1755195629729,2.2167606,4511.1,4510.5,0.1112]
[1755195630429,2.21671553,4511.2,4510.5,0.1112]
[1755195630726,3.757,4511.1,4510.6,2.21695121]
[1755195630937,3.757,4511.1,4510.5,0.1112]
[1755195631121,3.757,4511.0,4510.5,0.1112]
[1755195631325,2.21680391,4511.0,4510.5,0.1112]
[1755195631494,3.756,4510.9,4510.5,0.1112]
[1755195633016,3.03999999,4510.8,4510.5,0.1112]
[1755195633734,3.03999999,4510.8,4510.7,2.2169508]
[1755195634040,6.79499999,4510.8,4510.7,3.15843944]
[1755195634240,3.03999999,4512.0,4510.7,1.51008864]
[1755195634399,2.21650057,4511.7,4511.4,0.1112]
[1755195634594,3.755,4511.8,4511.4,0.1112]
[1755195636340,2.2164103,4511.8,4511.4,0.1112]
[1755195636535,3.755,4511.7,4511.4,0.1112]
[1755195638047,3.755,4511.7,4511.0,0.1112]
[1755195638048,0.94650635,4511.6,4511.0,0.1112]
[1755195638369,1.05770635,4511.6,4510.1,2.21721675]
[1755195638528,1.05770635,4511.6,4510.4,0.1112]
[1755195638529,1.4688,4511.5,4510.4,0.1112]
[1755195638839,2.21698834,4510.7,4510.4,0.1112]